bitfinex-derivatives/quotes_ETHF0:USTF0_20250831
["timestamp","ask_amount","ask_price","bid_price","bid_amount"]
[1756633256379,0.69817999,4479.5,4479.4,3.6454]
[1756633261381,4.92142,4479.5,4478.9,3.2078]
[1756633261683,0.69817999,4479.0,4478.9,3.2078]
[1756633261986,0.92417999,4479.0,4478.9,3.2078]
[1756633265182,0.69817999,4479.0,4478.9,3.4]
[1756633265381,0.92417999,4479.0,4478.9,3.6453]
[1756633268189,0.69817999,4479.0,4478.9,3.6453]
[1756633268389,0.92417999,4479.0,4478.9,3.6453]
[1756633268589,0.69817999,4479.0,4478.9,3.6453]
[1756633268890,0.92417999,4479.0,4478.9,3.6453]
[1756633269990,0.92417999,4479.0,4478.9,3.2078]
[1756633270583,0.1956,4478.5,4478.4,0.4378]
[1756633270786,0.71687999,4478.5,4478.4,0.4378]
[1756633270987,0.4934,4478.5,4478.4,0.4378]
[1756633272902,0.4934,4478.4,4478.3,0.4378]
[1756633273194,0.4934,4478.4,4478.3,0.246]
[1756633273893,0.4934,4478.4,4478.3,0.4378]
[1756633276193,0.2978,4478.8,4478.7,0.1918]
[1756633276394,0.2978,4478.8,4478.7,0.4378]
[1756633276592,0.71687999,4478.8,4478.7,0.4378]
[1756633278296,0.226,4479.0,4478.7,0.4378]
[1756633278297,0.2978,4479.3,4479.2,0.1918]
[1756633278496,0.4934,4479.3,4479.2,0.4378]
[1756633281297,0.2978,4479.3,4479.2,0.4378]
[1756633281801,3.2078,4480.0,4479.2,0.4378]
[1756633281996,0.71687999,4479.5,4479.4,0.4378]
[1756633282901,0.4934,4479.5,4479.4,0.4378]
[1756633283101,0.71687999,4479.5,4479.4,0.4378]
[1756633290305,0.4934,4479.5,4479.4,0.21432001]
[1756633290506,0.4934,4479.5,4479.4,0.24922001]
[1756633294503,32.161,4480.3,4479.4,0.24922001]
[1756633294703,32.161,4480.3,4480.0,0.0567]
[1756633294704,0.4934,4480.1,4480.0,0.0567]
[1756633295004,0.4934,4480.1,4480.0,0.0349]
[1756633295204,0.4934,4480.1,4479.6,3.2078]
[1756633295399,0.1956,4479.8,4479.7,0.0567]
[1756633295598,0.4934,4479.8,4479.7,0.0567]
[1756633297608,0.4934,4479.8,4479.7,0.0349]
[1756633298106,0.1956,4479.8,4479.6,3.2078]
[1756633298310,0.326,4480.2,4479.1,3.2078]
[1756633298515,0.4772,4479.2,4479.1,3.2078]
[1756633298905,0.4772,4479.2,4479.1,3.267]
[1756633300010,0.2898,4479.2,4479.1,3.267]
[1756633300206,0.2898,4479.7,4479.2,0.0228]
[1756633300408,0.4772,4479.7,4479.6,0.0364]
[1756633301109,0.4772,4479.7,4479.4,0.0228]
[1756633301612,0.226,4480.0,4479.2,0.0228]
[1756633301807,0.4772,4479.3,4479.2,0.0592]
[1756633302704,0.2898,4479.3,4479.2,0.0592]
[1756633302908,0.4772,4479.3,4479.2,0.0592]
[1756633303704,0.4772,4479.3,4479.1,3.4338]
[1756633303909,0.4772,4479.2,4479.1,3.2078]
[1756633305210,0.4772,4479.2,4478.6,3.2078]
[1756633305416,0.4772,4478.7,4478.6,3.2078]
[1756633306918,0.4772,4478.7,4478.6,3.267]
[1756633308115,0.4772,4478.7,4478.6,3.2078]
[1756633310724,0.4772,4477.8,4477.7,3.6996]
[1756633311814,0.4772,4477.8,4477.7,0.4918]
[1756633317219,0.4772,4477.8,4477.7,0.1935]
[1756633317527,0.4772,4477.3,4477.2,0.4918]
[1756633318624,0.3908,4478.3,4477.3,0.2983]
[1756633318818,0.61413,4478.3,4477.3,0.2983]
[1756633319018,0.22332001,4478.2,4477.3,0.2983]
[1756633319218,0.4772,4478.1,4478.0,0.4918]
[1756633324426,0.4772,4478.1,4478.0,0.1935]
[1756633325327,0.4772,4478.1,4478.0,0.4918]
[1756633331528,3.7041,4478.9,4478.8,0.4968]
[1756633331928,0.4963,4478.9,4478.8,0.4968]
[1756633334533,0.2997,4479.3,4478.8,0.1966]
[1756633334728,3.4044,4479.4,4479.3,0.4968]
[1756633335336,3.7041,4479.4,4479.3,0.4968]
[1756633339439,0.4963,4479.4,4479.3,0.4968]
[1756633341735,0.1966,4478.9,4478.8,3.4044]
[1756633341942,0.4963,4478.9,4478.8,3.7046]
[1756633343030,3.2078,4479.9,4478.8,3.7046]
[1756633343340,0.4963,4479.0,4478.9,0.4968]
[1756633345135,0.2997,4479.4,4479.0,0.3002]
[1756633345343,0.2997,4479.4,4479.3,0.4968]
[1756633345534,0.4963,4479.4,4479.3,0.4968]
[1756633346642,0.1966,4478.9,4478.8,3.7046]
[1756633346835,0.4963,4478.9,4478.8,3.7046]
[1756633348443,0.4963,4478.9,4478.8,3.2078]
[1756633349940,0.4963,4478.9,4478.8,3.7046]
[1756633351644,0.4963,4478.9,4478.8,3.4044]
[1756633351840,0.4963,4478.9,4478.5,3.2078]
[1756633352045,0.1966,4478.7,4478.6,0.3002]
[1756633352240,0.4963,4478.7,4478.6,0.3002]
[1756633352440,0.4963,4478.7,4478.6,0.4968]
[1756633352842,0.4963,4478.7,4478.6,0.1966]
[1756633353145,0.4963,4478.7,4478.4,0.3002]
[1756633353344,0.1966,4478.7,4478.0,0.3002]
[1756633353650,0.2997,4478.6,4478.0,0.3002]
[1756633354151,0.4963,4478.6,4478.5,0.1966]
[1756633354448,0.4963,4478.6,4478.5,0.4968]
[1756633356345,0.1966,4478.6,4478.5,0.4968]
[1756633357250,0.4963,4478.6,4478.5,0.4968]
[1756633358149,0.2927,4479.1,4478.6,0.3037]
[1756633358353,0.4884,4479.1,4479.0,0.1959]
[1756633358542,0.4884,4479.1,4479.0,0.4996]
[1756633361553,0.4884,4479.1,4477.9,3.4328]
[1756633361754,0.2927,4479.0,4478.1,0.3037]
[1756633361954,0.2927,4479.0,4478.0,0.22329]
[1756633361955,0.2927,4479.1,4478.5,0.3037]
[1756633364854,0.1957,4478.6,4478.5,0.4996]
[1756633365058,0.4884,4478.6,4478.5,0.3037]
[1756633365260,0.4884,4478.6,4478.5,0.4996]
[1756633367759,0.4884,4478.6,4478.5,0.3037]
[1756633367955,0.2927,4478.5,4478.0,0.3037]
[1756633368155,0.2927,4478.8,4478.0,0.3037]
[1756633370769,0.4884,4478.8,4478.7,0.1959]
[1756633370967,0.4884,4478.8,4478.7,0.4996]
[1756633375263,0.2927,4479.1,4478.7,0.1959]
[1756633375463,0.54509983,4479.0,4478.9,0.1959]
[1756633375769,1.03349983,4479.0,4478.9,0.4996]
[1756633378163,0.1957,4479.0,4478.9,0.4996]
[1756633378865,0.4884,4479.0,4478.9,0.4996]
[1756633387071,0.1957,4479.0,4478.5,0.3037]
[1756633387274,0.1957,4478.6,4478.5,0.72288]
[1756633387474,0.4884,4478.6,4478.5,0.4996]
[1756633388765,0.4884,4478.6,4478.5,0.1959]
[1756633388972,0.4976,4478.5,4478.4,3.2078]
[1756633390480,0.4976,4478.5,4478.4,3.4963]
[1756633390679,0.4976,4478.5,4478.4,0.4848]
[1756633397471,0.72089,4478.5,4477.9,3.2078]
[1756633397784,0.4976,4478.1,4478.0,0.2885]
[1756633397980,0.3019,4477.7,4477.5,0.2885]
[1756633398176,0.4976,4477.6,4477.5,0.2885]
[1756633398377,0.3019,4477.5,4477.4,3.2078]
[1756633398673,0.3019,4476.9,4476.4,3.2078]
[1756633398877,0.4976,4476.5,4476.4,3.4041]
[1756633399379,0.4976,4476.5,4476.4,3.6926]
[1756633399585,0.225,4476.5,4476.4,3.6926]
[1756633399983,0.225,4476.8,4476.5,0.2885]
[1756633400174,0.7226,4476.8,4476.7,0.1963]
[1756633400379,0.7226,4476.8,4476.7,0.4848]
[1756633400881,0.1957,4476.8,4476.5,0.2885]
[1756633401073,0.4207,4476.8,4476.7,0.4848]
[1756633401474,0.7226,4476.8,4476.7,0.4848]
[1756633401881,0.4976,4476.8,4476.7,0.4848]
[1756633402081,0.7226,4476.8,4476.7,0.4848]
[1756633402987,0.4976,4476.8,4476.7,0.4848]
[1756633403282,0.7226,4476.8,4476.7,0.4848]
[1756633404681,0.7226,4476.8,4476.4,3.4963]
[1756633404885,0.3019,4476.7,4476.5,0.2885]
[1756633405080,0.1957,4476.6,4476.5,0.4848]
[1756633405279,0.4976,4476.6,4476.5,0.4848]
[1756633406281,0.4976,4477.2,4477.1,0.4848]
[1756633406480,0.4976,4477.2,4476.5,0.2885]
[1756633406481,0.3019,4477.1,4476.5,0.2885]
[1756633406681,0.1957,4476.6,4476.5,0.4848]
[1756633406986,0.4976,4476.6,4476.5,0.4848]
[1756633409882,0.3019,4476.5,4476.0,0.2885]
[1756633410088,0.1957,4476.1,4476.0,0.4848]
[1756633410283,0.4976,4476.1,4475.9,3.2078]
[1756633410487,0.4976,4476.0,4475.9,3.4041]
[1756633410990,0.4976,4475.0,4474.9,0.4848]
[1756633411489,0.1957,4475.0,4474.9,0.4848]
[1756633412090,0.226,4475.1,4475.0,0.4848]
[1756633412292,0.4217,4475.1,4475.0,0.4848]
[1756633412491,0.7236,4475.1,4475.0,0.4848]
[1756633412888,0.4976,4475.1,4475.0,0.4848]
[1756633413289,0.7236,4475.1,4475.0,0.4848]
[1756633413894,0.4976,4475.1,4475.0,0.4848]
[1756633414089,0.226,4475.5,4475.4,0.1963]
[1756633414296,0.7236,4475.5,4475.4,0.4848]
[1756633414590,0.1957,4475.5,4475.4,0.4848]
[1756633414887,0.226,4476.0,4475.9,0.4848]
[1756633415196,0.1957,4476.0,4475.9,0.4848]
[1756633415993,0.4976,4476.0,4475.9,0.4848]
[1756633418193,3.2078,4476.6,4476.0,0.2872]
[1756633418388,3.9085,4476.6,4476.5,0.4791]
[1756633421195,3.6293,4476.6,4476.5,0.4791]
[1756633421400,3.4033,4476.6,4476.5,0.4791]
[1756633421594,3.9085,4476.6,4476.5,0.4791]
[1756633423004,3.6825,4476.6,4476.5,0.4791]
[1756633423198,0.7007,4476.6,4476.5,0.4791]
[1756633423500,0.1955,4476.3,4476.2,0.4791]
[1756633423700,0.4747,4476.3,4476.2,0.4791]
[1756633426805,0.1955,4476.3,4476.2,0.4791]
[1756633427207,0.4747,4476.3,4476.2,0.4791]
[1756633428000,0.226,4476.4,4476.3,0.4791]
[1756633428905,0.4747,4477.0,4476.9,0.4791]
[1756633429104,0.7007,4477.0,4476.9,0.4791]
[1756633429711,0.4747,4477.0,4476.9,0.4791]
[1756633429905,0.7007,4477.0,4476.9,0.4791]
[1756633430213,0.4747,4477.0,4476.9,0.4791]
[1756633430510,0.2792,4476.9,4476.2,0.2872]
[1756633430904,0.4747,4476.3,4476.2,0.4791]
[1756633431105,0.4747,4476.3,4475.6,0.2872]
[1756633431311,0.4747,4475.6,4475.5,0.4791]
[1756633431706,0.121,4475.8,4475.5,0.1919]
[1756633431900,0.3165,4475.8,4475.7,0.1919]
[1756633432112,0.5957,4475.8,4475.7,0.4791]
[1756633433607,0.5957,4475.8,4475.7,0.2872]
[1756633433808,0.2792,4475.7,4475.1,0.2872]
[1756633434013,0.1955,4475.2,4475.1,0.4791]
[1756633434206,0.4747,4475.2,4475.1,0.4791]
[1756633434406,0.4747,4475.2,4475.1,0.70256]
[1756633434607,0.4747,4475.2,4475.1,0.4791]
[1756633440917,0.4747,4475.4,4475.3,0.1919]
[1756633441111,0.4747,4475.4,4475.3,0.4791]
[1756633442818,0.4747,4475.4,4475.3,0.1919]
[1756633442819,0.1955,4475.4,4475.3,0.1919]
[1756633443019,0.1955,4475.4,4475.3,0.4791]
[1756633443413,0.226,4476.0,4475.4,0.2872]
[1756633443720,0.7007,4476.0,4475.9,0.4791]
[1756633443908,0.7007,4476.0,4475.0,3.2078]
[1756633444113,0.2792,4475.9,4475.1,0.2872]
[1756633444316,0.4747,4475.2,4475.1,0.4791]
[1756633445220,0.1955,4475.2,4475.1,0.4791]
[1756633445922,0.4747,4475.2,4475.1,0.4791]
[1756633446726,0.226,4475.6,4475.1,0.1919]
[1756633446923,0.4747,4475.5,4475.4,0.1919]
[1756633447122,0.4747,4475.5,4475.4,0.4791]
[1756633448319,0.4747,4475.5,4475.4,0.1919]
[1756633449421,0.4747,4475.5,4475.4,0.4889]
[1756633449915,0.1955,4475.5,4475.1,0.297]
[1756633450120,0.4617,4475.1,4475.0,3.4001]
[1756633450722,0.4617,4475.1,4475.0,3.6971]
[1756633453340,0.4617,4475.1,4474.5,3.2078]
[1756633453640,0.4617,4474.6,4474.5,3.4001]
[1756633454137,0.4617,4474.6,4474.5,3.6971]
[1756633455436,0.4617,4474.6,4474.5,0.4893]
[1756633457442,0.4617,4474.6,4474.0,3.2078]
[1756633457637,0.187,4474.1,4474.0,3.2078]
[1756633457832,0.4617,4473.2,4473.1,0.4893]
[1756633458038,0.4617,4473.2,4472.7,3.2078]
[1756633458039,0.5017,4473.5,4473.4,0.1923]
[1756633458241,0.69113945,4473.5,4473.4,0.4893]
[1756633458534,0.18943945,4473.5,4473.4,0.4893]
[1756633459040,0.65113945,4473.5,4473.4,0.4893]
[1756633459438,0.18943945,4473.5,4473.4,0.4893]
[1756633461538,0.18903055,4473.5,4473.4,0.4893]
[1756633462345,0.1889685,4473.5,4473.4,0.4893]
[1756633462844,0.1889685,4473.5,4473.4,3.6971]
[1756633466547,0.1889685,4473.5,4473.4,0.4893]
[1756633466951,0.1889685,4473.5,4473.4,3.6971]
[1756633467350,0.1889685,4473.5,4473.4,0.4893]
[1756633468852,0.1889685,4473.5,4473.4,3.6971]
[1756633469253,0.3759685,4473.5,4473.4,3.6971]
[1756633469458,0.1889685,4473.5,4473.4,3.6971]
[1756633472250,0.19872804,4473.5,4473.4,3.6971]
[1756633482860,0.19924317,4473.5,4473.4,3.6971]
[1756633489970,0.2841,4474.0,4473.4,3.6971]
[1756633490175,0.1947,4473.7,4473.6,0.2757]
[1756633490472,0.6739188,4473.7,4473.6,0.4588]
[1756633493573,0.4788,4473.7,4473.6,0.4588]
[1756633493775,0.67407857,4473.7,4473.6,0.4588]
[1756633495277,0.38997857,4473.7,4473.6,0.4588]
[1756633495678,0.19527857,4473.7,4473.6,0.4588]
[1756633498178,0.67407857,4473.7,4473.6,0.4588]
[1756633499682,0.67407857,4473.7,4473.6,0.1831]
[1756633500575,0.4788,4473.7,4473.6,0.1831]
[1756633500785,0.66545554,4473.7,4473.6,0.4588]
[1756633501483,0.38135554,4473.7,4473.4,3.2078]
[1756633501684,0.4788,4473.5,4473.4,3.2078]
[1756633501980,0.66545554,4473.5,4473.4,3.2078]
[1756633502579,5.45811659,4473.5,4472.9,3.2078]
[1756633502777,0.4788,4473.0,4472.9,3.2078]
[1756633502979,0.66545554,4473.0,4472.9,3.2078]
[1756633503180,0.4788,4473.0,4472.9,3.2078]
[1756633503380,0.66553217,4473.0,4472.9,3.2078]
[1756633504376,0.2841,4472.9,4472.0,0.2757]
[1756633504576,0.4788,4472.1,4471.9,3.2078]
[1756633504777,0.66553217,4472.0,4471.9,3.2078]
[1756633504984,0.66553217,4472.0,4471.9,3.6666]
[1756633505379,0.18673217,4472.0,4471.9,3.6666]
[1756633505579,0.66553217,4472.0,4471.9,3.6666]
[1756633506474,0.4788,4472.0,4471.9,3.6666]
[1756633506677,0.2841,4472.3,4471.9,3.6666]
[1756633506877,0.226,4472.6,4472.0,0.2757]
[1756633507073,0.4788,4472.5,4472.4,0.4588]
[1756633508084,0.6976,4473.0,4472.9,0.1828]
[1756633508296,0.6976,4473.0,4472.9,0.4701]
[1756633508585,0.1964,4472.1,4472.0,0.4701]
[1756633508779,0.4716,4472.1,4472.0,0.4701]
[1756633509183,0.1964,4472.1,4472.0,0.4701]
[1756633509480,0.226,4473.0,4472.1,0.2873]
[1756633509481,0.4716,4473.0,4472.1,0.2873]
[1756633509681,0.4716,4473.0,4471.8,0.226]
[1756633509682,0.4716,4473.0,4472.9,0.4701]
[1756633512783,0.4716,4473.0,4472.7,0.2873]
[1756633513183,0.4716,4472.9,4472.8,0.1828]
[1756633513385,0.4716,4472.9,4472.8,0.4701]
[1756633513580,0.4716,4472.9,4472.8,0.1828]
[1756633514789,0.4716,4472.9,4472.8,0.4701]
[1756633517782,0.2752,4472.4,4471.9,3.2078]
[1756633517985,0.4716,4472.0,4471.9,3.2078]
[1756633518380,0.4716,4472.0,4471.9,3.6779]
[1756633519589,0.4716,4472.0,4471.9,3.3906]
[1756633519780,0.4716,4472.0,4471.9,3.2078]
[1756633519988,0.4716,4472.0,4471.9,3.6779]
[1756633520181,0.4716,4472.0,4471.9,3.2078]
[1756633520588,0.1964,4471.4,4471.3,3.6779]
[1756633520787,0.4716,4471.4,4471.3,3.6779]
[1756633522390,0.2752,4471.7,4471.6,0.1828]
[1756633522583,0.1964,4471.7,4471.6,0.1828]
[1756633522783,0.4716,4471.7,4471.6,0.4701]
[1756633523887,0.1964,4471.7,4471.6,0.4701]
[1756633524088,0.4716,4471.7,4471.6,0.4701]
[1756633525290,0.1964,4471.7,4471.6,0.4701]
[1756633525492,0.4716,4471.7,4471.6,0.4701]
[1756633525892,0.1964,4471.7,4471.6,0.4701]
[1756633526195,0.6986,4471.9,4471.8,0.1828]
[1756633526590,0.2752,4471.8,4471.3,3.2078]
[1756633526790,0.1964,4471.4,4471.3,3.3906]
[1756633526990,0.4716,4471.4,4471.3,3.6779]
[1756633528195,0.4716,4471.4,4471.3,0.4701]
[1756633529092,0.4716,4471.4,4471.3,0.1828]
[1756633529494,0.4716,4471.4,4471.3,0.4701]
[1756633532198,0.1964,4471.0,4470.9,0.2873]
[1756633532498,0.1964,4471.0,4470.9,0.4701]
[1756633533202,0.4716,4471.0,4470.9,0.4701]
[1756633536001,0.4716,4471.5,4471.4,0.4701]
[1756633537792,0.4716,4471.5,4471.4,0.1828]
[1756633537996,0.2771,4471.4,4470.9,0.2805]
[1756633538309,0.4796,4471.0,4470.9,0.477]
[1756633539299,0.2025,4471.0,4470.8,3.2078]
[1756633539500,0.4796,4470.9,4470.8,3.4043]
[1756633540000,0.4796,4470.9,4470.8,3.6848]
[1756633540203,0.4796,4470.9,4470.8,3.4043]
[1756633540396,0.4796,4470.9,4470.8,3.6848]
[1756633540800,0.4796,4470.9,4470.8,3.4883]
[1756633541202,0.4796,4470.9,4470.8,3.6848]
[1756633541794,0.4796,4470.9,4470.8,3.2078]
[1756633542199,0.4796,4470.9,4470.8,3.6848]
[1756633542705,0.7066,4470.9,4470.8,3.6848]
[1756633543406,0.4295,4470.9,4470.2,0.2805]
[1756633543593,0.2025,4470.3,4470.2,0.477]
[1756633543799,0.4796,4470.3,4470.2,0.477]
[1756633544303,0.4796,4470.2,4470.1,3.2078]
[1756633544498,0.4796,4470.2,4470.1,3.6848]
[1756633546102,0.7066,4470.2,4470.1,3.6848]
[1756633546906,0.4796,4470.2,4470.1,3.6848]
[1756633547111,0.7066,4470.2,4470.1,3.6848]
[1756633547701,0.7066,4470.2,4470.1,3.4043]
[1756633547902,0.7066,4470.2,4470.1,3.2078]
[1756633548208,0.7066,4470.2,4469.8,0.2805]
[1756633548403,0.2771,4470.1,4469.4,0.2805]
[1756633548999,0.2025,4469.5,4469.4,0.477]
[1756633549202,0.4796,4469.5,4469.4,0.477]
[1756633550105,0.2771,4469.4,4468.8,3.2078]
[1756633550304,0.4796,4469.4,4469.3,0.1965]
[1756633550606,0.7066,4469.4,4469.3,0.477]
[1756633552807,0.7066,4469.4,4468.3,3.2078]
[1756633553111,0.4796,4469.3,4469.2,0.477]
[1756633553311,0.4796,4469.3,4469.2,0.1965]
[1756633553504,0.4796,4469.3,4469.2,0.477]
[1756633553505,0.7066,4469.3,4469.2,0.477]
[1756633553706,0.2771,4469.2,4468.4,0.2805]
[1756633554000,0.2025,4469.1,4468.4,0.2805]
[1756633554205,0.4796,4469.1,4469.0,0.477]
[1756633554404,0.7066,4469.1,4469.0,0.477]
[1756633556109,0.4796,4469.1,4469.0,0.1965]
[1756633556312,0.7066,4469.1,4468.8,0.2805]
[1756633556713,0.7066,4469.1,4468.3,3.2078]
[1756633557013,0.4796,4469.1,4469.0,0.477]
[1756633557210,0.7066,4469.1,4469.0,0.477]
[1756633557409,0.4295,4469.1,4468.4,0.2805]
[1756633557608,0.2771,4469.0,4468.4,0.2805]
[1756633557815,0.4796,4469.0,4468.9,0.477]
[1756633558114,0.7066,4469.0,4468.9,0.477]
[1756633560214,0.2771,4469.6,4469.0,0.2805]
[1756633560414,0.2771,4469.4,4468.4,0.2805]
[1756633561415,0.7066,4469.3,4469.2,0.477]
[1756633561715,0.4796,4469.3,4469.2,0.477]
[1756633562014,0.7066,4469.3,4469.2,0.477]
[1756633563916,0.4796,4469.3,4469.2,0.477]
[1756633564113,0.7066,4469.3,4469.2,0.477]
[1756633570218,0.7066,4469.3,4468.9,0.2955]
[1756633570421,0.4777,4469.2,4469.1,0.4859]
[1756633570616,0.4777,4469.2,4468.5,0.2955]
[1756633570817,3.6855,4469.2,4468.5,0.2955]
[1756633571517,0.4777,4468.6,4468.5,0.2955]
[1756633571717,0.7047,4468.6,4468.5,0.4859]
[1756633572513,0.7047,4468.6,4468.5,0.1904]
[1756633572720,0.7047,4468.6,4468.5,0.4859]
[1756633572917,0.1991,4468.0,4467.9,0.4859]
[1756633573220,0.7047,4468.0,4467.9,0.4859]
[1756633573619,0.7047,4468.0,4467.9,0.1904]
[1756633573816,0.4777,4467.9,4467.6,0.2955]
[1756633574019,0.4777,4467.9,4467.3,3.2078]
[1756633574020,0.1991,4467.9,4467.4,0.2955]
[1756633574323,0.1991,4467.0,4466.9,0.4859]
[1756633574513,0.4777,4467.0,4466.9,0.4859]
[1756633575224,0.4261,4467.2,4467.1,0.1904]
[1756633575418,0.4777,4467.2,4467.1,0.4859]
[1756633575617,3.2078,4468.2,4467.1,0.4859]
[1756633575923,0.1991,4467.3,4467.2,0.4859]
[1756633576111,0.7047,4467.3,4467.2,0.4859]
[1756633577122,0.4777,4467.3,4467.2,0.4859]
[1756633577423,0.7047,4467.3,4467.2,0.4859]
[1756633578015,0.2786,4467.2,4466.8,3.2078]
[1756633578217,0.2786,4467.6,4466.5,0.4859]
[1756633578522,1.0579102,4467.5,4467.4,0.4859]
[1756633578820,0.5802102,4467.5,4467.4,0.4859]
[1756633579018,3.6855,4468.2,4468.1,0.4859]
[1756633579520,0.2786,4467.2,4466.5,0.2955]
[1756633579723,0.2786,4466.9,4466.6,0.2955]
[1756633579912,0.108,4467.3,4467.2,0.1904]
[1756633580117,0.2786,4467.8,4467.3,0.2955]
[1756633580118,0.228,4467.4,4467.3,0.2955]
[1756633580324,0.228,4467.4,4467.3,0.4859]
[1756633580516,3.2078,4468.2,4467.3,0.1904]
[1756633580717,3.2078,4468.2,4466.8,3.2078]
[1756633580718,1.05803848,4468.1,4468.0,0.1904]
[1756633580923,1.28603848,4468.1,4468.0,0.4859]
[1756633581124,0.2786,4468.0,4466.9,0.2955]
[1756633581324,0.4777,4467.8,4467.7,0.1904]
[1756633581526,0.4777,4467.8,4467.7,0.4859]
[1756633582426,0.4777,4467.8,4467.2,0.2955]
[1756633582625,0.4777,4467.6,4467.5,0.1904]
[1756633582827,1.28570341,4467.6,4467.5,0.4859]
[1756633583021,0.7057,4467.6,4467.5,0.4859]
[1756633583227,1.28559226,4467.6,4467.5,0.4859]
[1756633583439,0.7057,4467.6,4467.5,0.4859]
[1756633583640,1.2855989,4467.6,4467.5,0.4859]
[1756633583840,0.7057,4467.6,4467.5,0.4859]
[1756633584340,0.7057,4467.6,4467.5,0.1904]
[1756633585241,0.4777,4467.6,4467.5,0.4859]
[1756633585438,0.7057,4467.6,4467.5,0.4859]
[1756633585635,0.4777,4467.6,4467.5,0.4859]
[1756633585837,0.7057,4467.6,4467.5,0.4859]
[1756633588846,0.4777,4467.6,4467.5,0.4859]
[1756633589046,0.7057,4467.6,4467.5,0.4859]
[1756633591350,0.7057,4467.6,4467.2,0.2955]
[1756633592048,0.1991,4466.5,4466.4,0.4859]
[1756633592250,0.4777,4466.5,4466.4,0.4859]
[1756633592744,0.2786,4466.4,4466.3,3.2078]
[1756633592945,0.7057,4466.4,4466.3,3.2078]
[1756633593549,0.7057,4466.4,4465.8,0.2955]
[1756633593750,0.7057,4466.4,4465.6,3.2078]
[1756633593953,0.1991,4465.7,4465.6,3.3982]
[1756633594148,0.4777,4465.7,4465.6,3.6937]
[1756633594750,0.4777,4465.7,4465.6,0.4859]
[1756633595953,0.4777,4466.6,4466.5,0.1904]
[1756633596149,0.57904536,4466.6,4466.5,0.4859]
[1756633596449,0.4777,4466.6,4466.5,0.1904]
[1756633596844,3.2078,4466.7,4466.6,0.2955]
[1756633597046,3.2078,4466.7,4466.6,0.4859]
[1756633597354,3.4069,4466.7,4466.6,0.4859]
[1756633598053,3.7111,4466.7,4466.6,0.1904]
[1756633598550,3.7111,4466.7,4465.5,3.2078]
[1756633598741,0.5047,4466.6,4466.5,0.2021]
[1756633598943,0.5047,4466.6,4466.5,0.503]
[1756633600251,0.7327,4466.6,4466.5,0.503]
[1756633601154,0.2005,4466.6,4466.5,0.503]
[1756633601353,0.7327,4466.6,4466.5,0.503]
[1756633607753,0.2005,4466.6,4466.5,0.503]
[1756633608060,0.7327,4466.7,4466.6,0.503]
[1756633608357,0.5047,4466.7,4466.6,0.503]
[1756633610460,0.4285,4466.7,4466.6,0.503]
[1756633611254,0.5047,4466.7,4466.6,0.503]
[1756633611656,0.228,4466.8,4466.7,0.3009]
[1756633611857,0.3042,4467.1,4466.8,0.3009]
[1756633612059,0.5047,4466.8,4466.7,0.3009]
[1756633612357,0.5047,4466.8,4466.7,0.503]
[1756633612961,0.5047,4466.8,4466.7,0.2021]
[1756633613555,0.5047,4466.8,4466.7,0.503]
[1756633616462,1.08543906,4466.8,4466.7,0.503]
[1756633618460,0.78123906,4466.8,4466.2,0.3009]
[1756633618659,0.5047,4466.3,4466.2,0.503]
[1756633625169,1.08651784,4466.3,4466.2,0.503]
[1756633625862,0.5047,4466.3,4465.9,0.3009]
[1756633626062,1.08645363,4466.3,4465.9,0.3009]
[1756633626267,0.2005,4466.3,4465.7,0.3009]
[1756633626471,0.2005,4465.8,4465.7,0.503]
[1756633626666,0.5047,4465.8,4465.7,0.503]
[1756633628466,0.2025,4465.2,4465.1,0.4762]
[1756633628767,0.4938,4465.2,4465.1,0.4762]
[1756633631264,0.4938,4465.4,4465.3,0.1942]
[1756633631463,0.4938,4465.4,4465.3,0.4762]
[1756633633465,0.5183,4465.7,4465.4,0.282]
[1756633633673,0.7208,4465.7,4465.6,0.4762]
[1756633634268,0.4938,4465.7,4465.6,0.4762]
[1756633634970,3.2078,4466.1,4464.4,41.027]
[1756633634971,0.2913,4466.0,4465.9,0.4762]
[1756633635171,0.7208,4466.1,4466.0,0.4762]
[1756633635371,1.30115791,4466.1,4466.0,0.4762]
[1756633637072,1.30115791,4466.1,4465.5,3.2078]
[1756633637268,0.4938,4465.6,4465.5,3.402]
[1756633637468,0.2025,4465.6,4465.5,3.402]
[1756633637669,0.2913,4465.9,4465.5,3.402]
[1756633637873,0.2913,4465.9,4465.8,0.1942]
[1756633638074,0.4938,4465.9,4465.8,0.4762]
[1756633640369,0.4938,4465.9,4465.5,3.2078]
[1756633640578,0.2913,4465.5,4465.0,3.2078]
[1756633640874,0.4938,4465.1,4465.0,3.402]
[1756633641269,0.4938,4465.1,4465.0,3.684]
[1756633641778,0.2913,4465.5,4465.4,0.1942]
[1756633641970,0.2913,4465.5,4465.4,0.4762]
[1756633642471,0.4938,4465.5,4465.4,0.4762]
[1756633643974,0.2025,4465.5,4465.4,0.4762]
[1756633645066,0.7208,4465.8,4465.7,0.1942]
[1756633645271,1.30155608,4465.8,4465.7,0.4762]
[1756633645471,1.30155608,4465.8,4465.1,0.282]
[1756633645472,0.2913,4465.7,4465.1,0.282]
[1756633645672,0.4938,4465.7,4465.6,0.4762]
[1756633646178,1.07459568,4465.7,4465.6,0.4762]
[1756633647377,0.78329568,4465.7,4465.6,0.4762]